bitfinex/quotes_SOLUSD_20250710
["timestamp","ask_amount","ask_price","bid_price","bid_amount"]
[1752167566612,14.10789439,159.22,159.2,18.12282467]
[1752167566817,14.10789439,159.24,159.22,16.78468397]
[1752167567047,0.72,159.27,159.23,53.41270632]
[1752167567249,14.10789439,159.24,159.23,52.78468397]
[1752167567755,14.10789439,159.24,159.23,36.0]
[1752167567934,14.82789439,159.24,159.23,36.0]
[1752167568116,14.82789439,159.24,159.19,0.65818016]
[1752167568321,0.72,159.27,159.2,36.67]
[1752167568522,14.10789439,159.21,159.2,53.45468397]
[1752167569557,0.72,159.27,159.21,16.78468397]
[1752167569727,14.10789439,159.22,159.21,17.41278521]
[1752167570051,14.10789439,159.22,159.21,89.0]
[1752167570261,14.10789439,159.22,159.21,124.9]
[1752167571156,14.82789439,159.22,159.21,89.0]
[1752167571524,0.72,159.22,159.21,124.88]
[1752167571827,14.10789439,159.22,159.21,124.88]
[1752167572441,14.82789439,159.22,159.21,124.88]
[1752167573355,14.82789439,159.22,159.21,35.82]
[1752167573947,14.10789439,159.22,159.21,35.82]
[1752167574156,14.9526759,159.28,159.21,35.82]
[1752167574157,14.88789439,159.28,159.22,16.78468397]
[1752167574327,14.10789439,159.23,159.22,16.78468397]
[1752167574526,14.88789439,159.28,159.22,52.58468397]
[1752167575150,14.10789439,159.23,159.22,52.58468397]
[1752167575457,14.10789439,159.23,159.22,35.8]
[1752167576246,0.06,159.28,159.22,53.29468397]
[1752167576448,14.10789439,159.24,159.22,53.29468397]
[1752167576753,14.10789439,159.23,159.22,53.29468397]
[1752167577348,14.10789439,159.23,159.22,16.78468397]
[1752167577654,14.10789439,159.23,159.22,52.48468397]
[1752167577946,14.10789439,159.25,159.23,16.78468397]
[1752167578129,0.06,159.28,159.25,16.78468397]
[1752167578327,14.10789439,159.27,159.26,35.68]
[1752167580559,14.82789439,159.27,159.26,35.62]
[1752167581753,14.82789439,159.27,159.19,0.03]
[1752167581959,0.72,159.26,159.21,16.78468397]
[1752167582139,14.10789439,159.22,159.21,16.78468397]
[1752167582340,14.10789439,159.22,159.21,17.49468397]
[1752167582640,14.10789439,159.22,159.21,52.34468397]
[1752167583234,14.10789439,159.22,159.19,17.44286413]
[1752167583440,14.10789439,159.2,159.19,0.03]
[1752167583668,14.10789439,159.2,159.19,35.55]
[1752167583973,14.10789439,159.2,159.19,0.03]
[1752167584130,0.72,159.25,159.19,17.52468397]
[1752167584333,14.10789439,159.22,159.21,0.03]
[1752167585063,9.93343174,159.22,159.21,0.03]
[1752167585247,0.72,159.25,159.21,0.03]
[1752167585448,9.93343174,159.22,159.21,0.74]
[1752167586058,9.93343174,159.22,159.21,0.03]
[1752167586769,0.72,159.26,159.21,0.03]
[1752167586934,9.93343174,159.22,159.21,0.03]
[1752167587141,2.3545,159.28,159.21,18.15278521]
[1752167587354,9.93343174,159.25,159.21,107.15278521]
[1752167587548,9.93343174,159.25,159.23,16.78468397]
[1752167587750,9.93343174,159.26,159.24,35.44]
[1752167587948,9.93343174,159.25,159.24,35.44]
[1752167588254,0.06,159.28,159.25,16.78468397]
[1752167588460,0.06,159.28,159.26,35.44]
[1752167588649,9.93343174,159.27,159.26,35.44]
[1752167589845,9.93343174,159.27,159.26,52.22468397]
[1752167590460,9.99343174,159.28,159.26,52.22468397]
[1752167590669,0.06,159.28,159.27,18.0825486]
[1752167590845,9.93343174,159.31,159.27,18.0825486]
[1752167591157,9.93343174,159.31,159.29,16.78468397]
[1752167591365,9.93343174,159.31,159.3,35.98774639]
[1752167592249,10.64343174,159.31,159.3,35.36]
[1752167592860,9.93343174,159.31,159.3,35.36]
[1752167593657,10.64343174,159.31,159.26,0.62790405]
[1752167593866,9.93343174,159.27,159.25,16.78468397]
[1752167594062,9.93343174,159.27,159.26,35.28]
[1752167594661,9.93343174,159.27,159.22,17.41274577]
[1752167594662,9.93343174,159.27,159.23,16.78468397]
[1752167594864,9.93343174,159.25,159.24,35.26]
[1752167595238,0.71,159.3,159.24,53.34266688]
[1752167595480,9.93343174,159.28,159.25,17.21116868]
[1752167595646,0.71,159.32,159.27,16.78468397]
[1752167595847,9.93343174,159.29,159.28,35.84782521]
[1752167596261,9.93343174,159.29,159.28,35.22]
[1752167596865,0.71,159.32,159.28,35.22]
[1752167597501,9.93343174,159.29,159.28,52.63250918]
[1752167597640,10.64343174,159.29,159.28,0.62782521]
[1752167597850,10.64343174,159.29,159.28,35.18]
[1752167598048,0.71,159.31,159.28,35.18]
[1752167598262,9.93343174,159.29,159.28,35.18]
[1752167599677,9.93343174,159.29,159.24,0.62798291]
[1752167599678,10.64343174,159.29,159.24,0.62798291]
[1752167599871,0.71,159.28,159.25,35.38]
[1752167600982,9.93343174,159.26,159.25,35.38]
[1752167601183,0.71,159.3,159.25,52.16468397]
[1752167601405,8.25019765,159.36,159.26,18.08258802]
[1752167601406,9.93343174,159.28,159.26,18.08258802]
[1752167601565,9.93343174,159.27,159.26,17.41258802]
[1752167601900,9.93343174,159.27,159.25,35.38]
[1752167602078,9.93343174,159.26,159.25,52.16468397]
[1752167602265,0.71,159.29,159.25,35.38]
[1752167602590,9.93343174,159.26,159.25,16.78468397]
[1752167602773,9.93343174,159.26,159.25,52.08468397]
[1752167603086,0.71,159.29,159.25,52.08468397]
[1752167603275,9.93343174,159.26,159.25,52.08468397]
[1752167604273,9.93343174,159.26,159.25,16.78468397]
[1752167604472,9.93343174,159.26,159.25,52.06468397]
[1752167605287,10.64343174,159.26,159.24,0.62798291]
[1752167605493,10.64343174,159.25,159.21,0.03]
[1752167605794,9.93343174,159.22,159.21,0.03]
[1752167606199,10.64343174,159.22,159.21,35.25]
[1752167606574,20.57686348,159.22,159.21,0.03]
[1752167606992,10.64343174,159.22,159.21,35.23]
[1752167608791,20.57686348,159.22,159.21,35.23]
[1752167609191,20.57686348,159.22,159.15,27.1]
[1752167609374,26.35716348,159.2,159.15,27.1]
[1752167609575,9.93343174,159.16,159.15,27.1]
[1752167609780,10.64343174,159.16,159.15,35.12]
[1752167610371,1.6472,159.21,159.15,35.79]
[1752167610585,0.71,159.22,159.16,16.78468397]
[1752167610586,9.93343174,159.18,159.16,16.78468397]
[1752167610789,9.93343174,159.18,159.16,17.45468397]
[1752167611380,6.4903,159.24,159.16,17.45468397]
[1752167611381,9.93343174,159.19,159.17,1.29825909]
[1752167611686,9.93343174,159.19,159.18,35.1]
[1752167612084,9.93343174,159.21,159.19,16.78468397]
[1752167612389,9.93343174,159.22,159.2,0.67]
[1752167612580,9.93343174,159.22,159.21,51.86468397]
[1752167613175,9.93343174,159.22,159.21,35.08]
[1752167614576,9.93343174,159.22,159.21,35.58]
[1752167614770,10.64343174,159.22,159.21,35.56]
[1752167615600,9.93343174,159.22,159.21,35.56]
[1752167616199,10.64343174,159.22,159.21,35.56]
[1752167616391,10.64343174,159.22,159.21,35.5]
[1752167616788,22.22686348,159.22,159.13,16.78468397]
[1752167617104,9.93343174,159.14,159.13,16.78468397]
[1752167617284,9.93343174,159.14,159.13,52.43468397]
[1752167617982,9.93343174,159.14,159.13,51.76468397]
[1752167618180,9.93343174,159.14,159.11,16.78468397]
[1752167618507,9.93343174,159.12,159.11,17.47468397]
[1752167618682,9.93343174,159.12,159.11,52.41468397]
[1752167619598,9.93343174,159.12,159.11,52.39468397]
[1752167620312,9.93343174,159.13,159.11,52.82116868]
[1752167620489,9.93343174,159.13,159.12,0.69]
[1752167621084,9.93343174,159.13,159.12,35.57]
[1752167622198,9.93343174,159.15,159.13,16.78468397]
[1752167622404,9.93343174,159.15,159.14,34.88]
[1752167623479,9.93343174,159.16,159.14,35.57]
[1752167623698,9.93343174,159.15,159.14,35.57]
[1752167623879,9.93343174,159.15,159.14,51.66468397]
[1752167624785,0.65,159.21,159.14,52.35468397]
[1752167625005,9.93343174,159.17,159.15,16.78468397]
[1752167625185,9.93343174,159.18,159.16,35.49]
[1752167625503,9.93343174,159.18,159.16,34.8]
[1752167626011,9.93343174,159.17,159.16,34.8]
[1752167626709,2.3,159.22,159.16,34.8]
[1752167627012,9.93343174,159.17,159.16,51.58468397]
[1752167627408,2.3,159.22,159.16,51.58468397]
[1752167627712,9.93343174,159.17,159.16,51.58468397]
[1752167628013,6.3793,159.24,159.17,16.78468397]
[1752167628220,9.93343174,159.2,159.18,34.78]
[1752167628589,9.93343174,159.2,159.18,35.47]
[1752167629182,7.0293,159.24,159.18,35.47]
[1752167629505,9.93343174,159.2,159.18,34.78]
[1752167630296,0.06,159.22,159.18,34.78]
[1752167630497,0.71,159.22,159.18,34.78]
[1752167630698,9.93343174,159.19,159.18,34.78]
[1752167631009,9.99343174,159.22,159.19,16.78468397]
[1752167631208,9.93343174,159.21,159.2,34.72]
[1752167631600,0.06,159.22,159.2,34.72]
[1752167631803,9.93343174,159.21,159.2,34.72]
[1752167632309,0.06,159.22,159.2,34.72]
[1752167632512,9.93343174,159.21,159.2,34.72]
[1752167633319,0.06,159.22,159.2,34.72]
[1752167633618,10.58343174,159.21,159.17,89.0]
[1752167633827,0.06,159.22,159.18,34.68]
[1752167633828,0.65,159.2,159.18,34.68]
[1752167634032,0.06,159.22,159.18,34.68]
[1752167634328,0.65,159.21,159.18,34.68]
[1752167634893,0.06,159.22,159.18,34.68]
[1752167635093,9.93343174,159.19,159.18,34.68]
[1752167636191,10.58343174,159.19,159.16,0.03]
[1752167636397,9.93343174,159.17,159.16,0.03]
[1752167636708,9.93343174,159.17,159.16,34.63]
[1752167638515,0.65,159.21,159.16,34.63]
[1752167638823,9.93343174,159.17,159.16,35.32]
[1752167639036,9.93343174,159.17,159.16,34.63]
[1752167639220,10.58343174,159.17,159.16,34.63]
[1752167639425,9.93343174,159.17,159.16,34.63]
[1752167641135,10.58343174,159.17,159.16,0.03]
[1752167641313,10.58343174,159.17,159.16,34.63]
[1752167643512,10.58343174,159.17,159.16,0.03]
[1752167643713,10.58343174,159.17,159.05,0.2]
[1752167643714,26.0,159.14,159.05,0.2]
[1752167643912,9.93343174,159.06,159.05,0.2]
[1752167644123,9.93343174,159.06,159.05,34.82]
[1752167644345,9.93343174,159.06,159.05,0.2]
[1752167644635,9.93343174,159.11,159.07,0.42648471]
[1752167644803,9.93343174,159.11,159.08,52.07468397]
[1752167645003,9.93343174,159.12,159.08,52.7032985]
[1752167645204,9.93343174,159.11,159.08,52.7032985]
[1752167645727,0.65,159.14,159.08,52.0132985]
[1752167645927,9.93343174,159.14,159.1,16.78468397]
[1752167646236,0.65,159.2,159.13,0.42648471]
[1752167646442,0.65,159.2,159.15,16.78468397]
[1752167646648,0.65,159.2,159.16,34.58]
[1752167646940,10.58343174,159.2,159.16,34.58]
[1752167648050,0.65,159.2,159.16,34.58]
[1752167648216,10.58343174,159.19,159.16,34.58]
[1752167648418,9.93343174,159.17,159.12,16.78468397]
[1752167648631,10.58343174,159.16,159.13,34.56]
[1752167649136,9.93343174,159.15,159.13,34.56]
[1752167649331,9.93343174,159.16,159.13,34.56]
[1752167649714,9.93343174,159.17,159.13,34.56]
[1752167650531,9.93343174,159.17,159.13,35.22]
[1752167650737,27.6631,159.22,159.13,34.56]
[1752167650908,0.65,159.2,159.14,0.66]
[1752167651108,9.93343174,159.19,159.14,0.66]
[1752167651526,10.58343174,159.2,159.15,0.66]
[1752167651728,10.58343174,159.2,159.16,34.54]
[1752167652054,0.06,159.21,159.16,34.54]
[1752167652055,0.06,159.21,159.16,35.2]
[1752167652221,9.93343174,159.2,159.16,123.54]
[1752167652552,10.58343174,159.2,159.16,34.54]
[1752167652745,0.06,159.21,159.16,34.54]
[1752167652746,0.06,159.21,159.16,35.2]
[1752167653037,0.06,159.21,159.17,0.66]
[1752167653231,0.06,159.21,159.18,0.66]
[1752167653415,0.06,159.21,159.19,34.54]
[1752167653611,0.06,159.21,159.19,35.2]
[1752167654234,0.06,159.21,159.2,17.44468397]
[1752167654438,0.06,159.22,159.2,17.87116868]
[1752167654741,0.06,159.22,159.21,18.49926992]
[1752167657642,0.06,159.22,159.21,107.49926992]
[1752167658531,0.06,159.3,159.22,17.21116868]
[1752167658739,0.06,159.3,159.25,0.42648471]
[1752167658922,0.06,159.3,159.26,35.80790405]
[1752167660229,0.71,159.3,159.26,35.14790405]
[1752167660423,0.06,159.3,159.26,35.80790405]
[1752167660844,10.64343174,159.3,159.27,34.52]
[1752167661144,0.65,159.29,159.27,34.52]
[1752167661324,10.58343174,159.29,159.27,34.52]
[1752167661521,0.06,159.3,159.27,34.52]
[1752167661750,0.71,159.3,159.27,34.52]
[1752167661937,0.06,159.3,159.27,35.18]
[1752167662140,0.06,159.3,159.28,1.28782521]
[1752167662626,0.06,159.3,159.29,0.28432314]
[1752167662830,0.06,159.3,159.29,0.94432314]
[1752167663722,0.06,159.3,159.28,0.62782521]
[1752167663928,0.10269765,159.36,159.33,0.28432314]
[1752167664124,31.5884854,159.49,159.38,26.78468397]
[1752167664461,31.17514965,159.56,159.44,17.21116868]
[1752167664665,31.17514965,159.56,159.47,0.42648471]
[1752167664959,31.12998434,159.54,159.49,0.14216157]
[1752167665133,31.12998434,159.54,159.5,0.62695924]
[1752167665467,6.49767829,159.51,159.5,0.76912081]
[1752167666462,6.49767829,159.51,159.5,35.28912081]
[1752167666630,26.0,159.53,159.5,52.35812792]
[1752167666828,31.17514965,159.56,159.51,17.21116868]
[1752167667067,31.17514965,159.56,159.53,0.14216157]
[1752167667232,38.21889385,159.57,159.55,0.14216157]
[1752167667568,0.77920151,159.52,159.51,16.78468397]
[1752167667929,26.77920151,159.52,159.51,16.78468397]
[1752167668328,0.77920151,159.52,159.51,16.78468397]
[1752167668528,0.77920151,159.52,159.5,235.3]
[1752167668747,26.00000006,159.52,159.5,235.3]
[1752167668973,25.22079863,159.52,159.5,235.3]
[1752167669176,38.21889385,159.57,159.5,235.3]
[1752167669350,38.21889385,159.57,159.51,0.42648471]
[1752167669556,6.87370991,159.57,159.51,0.42648471]
[1752167669766,16.80714165,159.57,159.51,235.72648471]
[1752167669964,6.87370991,159.57,159.51,235.72648471]
[1752167670165,6.87370991,159.57,159.53,0.42648471]
[1752167670362,38.21889385,159.57,159.53,235.72648471]
[1752167670548,48.15232559,159.57,159.53,0.42648471]
[1752167670748,35.93343174,159.54,159.49,235.3]
[1752167670950,9.93343174,159.5,159.45,262.4]
[1752167671168,0.65,159.53,159.46,34.48]
[1752167671474,26.0,159.54,159.46,35.08]
[1752167671666,26.0,159.47,159.46,35.08]
[1752167671996,16.0,159.47,159.46,35.08]
[1752167672279,6.87370991,159.57,159.46,35.08]
[1752167672280,31.47682022,159.51,159.46,34.48]
[1752167672474,9.93343174,159.47,159.39,116.06]
[1752167672785,0.65,159.46,159.4,34.46]
[1752167672981,9.93343174,159.41,159.4,34.46]
[1752167674875,40.09484882,159.41,159.4,34.46]
[1752167675659,40.09484882,159.41,159.39,27.06]
[1752167675660,16.78468397,159.4,159.39,27.06]
[1752167675962,14.74484882,159.4,159.39,61.52]
[1752167676783,45.62438161,159.4,159.39,27.06]
[1752167676967,26.0,159.37,159.26,27.06]
[1752167677173,26.0,159.28,159.27,34.46]
[1752167677565,22.03587309,159.28,159.27,34.46]
[1752167677768,14.09484882,159.34,159.27,34.46]
[1752167678082,0.69,159.39,159.28,17.21116868]
[1752167678265,14.09484882,159.36,159.28,17.21116868]
[1752167678465,14.09484882,159.35,159.28,17.21116868]
[1752167678668,14.09484882,159.33,159.27,34.46]
[1752167679178,0.69,159.38,159.28,0.42648471]
[1752167679362,31.30159561,159.44,159.28,17.21116868]
[1752167679564,31.39672969,159.4,159.31,0.42648471]
[1752167679783,14.09484882,159.39,159.32,34.46]
[1752167679957,14.09484882,159.4,159.33,0.42648471]
[1752167680162,31.84278862,159.41,159.33,17.21116868]
[1752167680363,14.09484882,159.4,159.33,17.21116868]
[1752167680764,45.93763744,159.41,159.33,252.51116868]
[1752167681068,31.20561266,159.46,159.35,17.21116868]
[1752167681380,26.0,159.39,159.37,0.42648471]
[1752167681563,26.0,159.39,159.37,89.42648471]
[1752167681888,31.42535858,159.43,159.37,89.42648471]
[1752167682269,26.0,159.41,159.37,235.72648471]
[1752167682477,31.30159561,159.44,159.37,235.72648471]
[1752167683086,31.30159561,159.44,159.37,240.58648471]
[1752167683576,31.42535858,159.43,159.39,0.42648471]
[1752167683889,31.87216018,159.48,159.41,0.42648471]
[1752167684073,31.03465771,159.45,159.41,89.42648471]
[1752167684273,45.39644443,159.44,159.42,34.46]
[1752167684582,26.0,159.42,159.41,94.28648471]
[1752167684784,26.0,159.42,159.41,128.74648471]
[1752167685078,45.5202074,159.43,159.41,128.74648471]
[1752167685471,26.0,159.42,159.41,94.28648471]
[1752167685674,26.0,159.42,159.41,128.74648471]
[1752167687277,26.0,159.42,159.41,94.28648471]
[1752167687460,26.0,159.42,159.41,128.74648471]
[1752167687787,31.03465771,159.45,159.41,128.74648471]
[1752167687788,45.12950653,159.45,159.41,128.74648471]
[1752167688297,31.03465771,159.45,159.41,128.74648471]
[1752167688970,31.87216018,159.48,159.41,128.74648471]
[1752167689172,31.03465771,159.45,159.41,128.74648471]
[1752167689383,45.12950653,159.45,159.41,128.74648471]
[1752167689581,14.09484882,159.44,159.41,128.74648471]
[1752167689775,26.0,159.42,159.41,128.74648471]
[1752167689974,26.0,159.42,159.41,128.72648471]
[1752167690290,40.09484882,159.42,159.41,128.3]
[1752167690967,40.09484882,159.42,159.41,93.86]
[1752167691190,40.09484882,159.42,159.41,128.3]
[1752167691491,26.0,159.42,159.41,124.0678]
[1752167691989,40.09484882,159.42,159.41,124.0678]
[1752167692565,26.0,159.42,159.41,124.49428471]
[1752167693079,45.30046148,159.46,159.41,39.72648471]
[1752167693277,26.0,159.42,159.41,124.49428471]
[1752167693781,31.20561266,159.46,159.42,0.42648471]
[1752167693977,45.68333422,159.49,159.43,34.44]
[1752167694183,45.68333422,159.49,159.44,0.42648471]
[1752167694372,65.47463723,159.45,159.44,231.49428471]
[1752167694898,31.16100689,159.45,159.44,85.19428471]
[1752167695135,22.81769084,159.45,159.44,85.19428471]
[1752167695592,22.81769084,159.45,159.44,119.63428471]
[1752167696002,22.81769084,159.45,159.44,119.86428471]
[1752167697694,26.0,159.46,159.44,85.42428471]
[1752167698001,26.0,159.45,159.44,119.84428471]
[1752167698695,26.0,159.45,159.44,119.4178]
[1752167698901,35.89688062,159.45,159.44,34.65]
[1752167699105,26.0,159.45,159.44,0.23]
[1752167699276,26.0,159.45,159.44,34.65]
[1752167699711,26.0,159.45,159.44,35.07648471]
[1752167699880,26.0,159.45,159.44,119.84428471]
[1752167700210,26.0,159.46,159.45,0.42648471]
[1752167700382,26.0,159.46,159.45,4.64]
[1752167700586,35.89688062,159.46,159.45,39.06]
[1752167700903,26.0,159.47,159.45,39.06]
[1752167701080,26.0,159.47,159.46,0.42648471]
[1752167701497,9.89688062,159.48,159.46,5.06648471]
[1752167701697,35.89688062,159.47,159.46,3.92]
[1752167701877,36.58688062,159.47,159.46,3.92]
[1752167702087,36.58688062,159.47,159.46,2.48]
[1752167702088,53.37156459,159.47,159.46,2.48]
[1752167702298,53.37156459,159.47,159.41,0.03]
[1752167702299,16.78468397,159.46,159.41,0.03]
[1752167702496,26.0,159.45,159.42,34.42]
[1752167702703,9.89688062,159.43,159.42,34.42]
[1752167703004,9.89688062,159.43,159.41,0.03]
[1752167703206,0.6,159.44,159.42,34.42]
[1752167703585,0.6,159.43,159.41,0.03]
[1752167703788,26.0,159.42,159.41,0.03]
[1752167704001,26.0,159.41,159.32,89.72]
[1752167704308,9.89688062,159.33,159.32,89.72]
[1752167704518,9.89688062,159.33,159.28,0.72]
[1752167704684,0.6,159.33,159.28,89.72]
[1752167704886,9.89688062,159.29,159.26,116.06]
[1752167705085,9.89688062,159.28,159.27,34.42]
[1752167705322,9.89688062,159.28,159.26,27.06]
[1752167705495,0.6,159.32,159.27,34.42]
[1752167705813,9.89688062,159.28,159.27,34.42]
[1752167706225,9.89688062,159.28,159.26,27.06]
[1752167706520,9.89688062,159.27,159.26,27.06]
[1752167706691,9.89688062,159.27,159.26,61.48]
[1752167706891,14.1230912,159.27,159.26,61.48]
[1752167707106,0.6,159.31,159.26,61.48]
[1752167707307,0.6,159.3,159.26,61.48]
[1752167707511,14.1230912,159.27,159.26,61.48]
[1752167707719,14.7230912,159.27,159.26,27.06]
[1752167707915,14.7230912,159.27,159.26,61.48]
[1752167708218,14.1230912,159.27,159.26,61.48]
[1752167708424,14.7230912,159.27,159.26,27.06]
[1752167708711,26.0,159.24,159.21,0.03]
[1752167708915,14.1230912,159.22,159.2,0.04]
[1752167709113,14.1230912,159.21,159.2,0.04]
[1752167709501,14.6930912,159.21,159.2,0.04]
[1752167709692,40.6930912,159.21,159.2,0.04]
[1752167709899,26.0,159.17,159.11,27.06]
[1752167710200,40.1230912,159.14,159.11,27.06]
[1752167710400,40.1230912,159.14,159.13,34.45]
[1752167710608,40.6930912,159.14,159.13,34.45]
[1752167711214,26.0,159.11,159.05,0.2]
[1752167711413,28.2461824,159.06,159.05,0.2]
[1752167711598,26.0,159.04,159.03,0.2]
[1752167711795,40.1230912,159.04,159.03,34.62]
[1752167711998,40.1230912,159.04,159.0,0.03]
[1752167712319,14.1230912,159.01,159.0,0.03]
[1752167713120,37.32947517,159.01,158.97,0.2]
[1752167713296,28.2461824,158.98,158.97,0.2]
[1752167713495,28.2461824,158.98,158.96,34.94]
[1752167713718,28.6161824,158.97,158.95,34.96]
[1752167714018,0.37,158.99,158.9,0.72]
[1752167714514,32.4217,159.01,158.92,0.72]
[1752167714717,6.0517,159.01,158.94,0.72]
[1752167715025,14.1230912,158.98,158.94,0.72]
[1752167715325,14.1230912,158.95,158.93,0.75]
[1752167715524,14.1230912,158.94,158.93,0.03]
[1752167715896,0.37,159.04,158.93,0.75]
[1752167716111,14.1230912,158.97,158.94,0.14216157]
[1752167716428,26.0,159.04,158.95,35.74]
[1752167716598,14.1230912,158.99,158.95,35.74]
[1752167716919,14.1230912,158.96,158.95,35.02]
[1752167717223,14.1230912,158.96,158.93,0.03]
[1752167717518,0.37,158.96,158.93,0.03]
[1752167717817,0.37,158.95,158.93,35.21]
[1752167718336,43.15468397,158.94,158.93,0.03]
[1752167718499,43.15468397,158.94,158.85,0.2]
[1752167718500,63.41247517,158.94,158.85,0.2]
[1752167718824,30.90777517,158.86,158.85,0.2]
[1752167718998,45.03086637,158.86,158.85,0.2]
[1752167719339,45.40086637,158.86,158.84,0.2]
[1752167719527,26.0,158.87,158.84,0.2]
[1752167719823,26.0,158.9,158.84,0.92]
[1752167720021,0.78650978,158.93,158.84,0.2]
[1752167720332,1.6023,158.97,158.84,0.62648471]
[1752167720333,42.78468397,158.96,158.84,0.62648471]
[1752167720626,6.3323,159.0,158.87,0.28432314]
[1752167720804,6.3323,159.0,158.89,0.14216157]
[1752167721010,14.1230912,158.93,158.9,36.02]
[1752167721196,14.1230912,158.91,158.88,0.14216157]
[1752167721392,14.1230912,158.9,158.86,0.14216157]
[1752167721614,0.78,158.97,158.87,0.28432314]
[1752167721817,14.1230912,158.94,158.87,17.06900711]
[1752167722035,0.78,158.97,158.87,0.28432314]
[1752167722216,14.1230912,158.95,158.86,26.0]
[1752167722403,14.1230912,158.88,158.86,26.0]
[1752167722609,14.1230912,158.88,158.87,35.34]
[1752167722823,14.8430912,158.95,158.87,35.34]
[1752167723119,14.1230912,158.89,158.88,35.32]
[1752167723322,14.1230912,158.9,158.88,36.04]
[1752167723620,14.1230912,158.89,158.85,0.72]
[1752167723824,26.0,158.92,158.84,0.2]
[1752167724008,14.1230912,158.85,158.84,0.2]
[1752167724323,14.1230912,158.85,158.84,35.52]
[1752167725318,14.1230912,158.85,158.84,0.2]
[1752167725501,14.1230912,158.85,158.84,35.52]
[1752167725705,0.78660877,158.91,158.84,36.24]
[1752167725903,14.1230912,158.87,158.84,36.24]
[1752167726112,0.72,158.92,158.84,36.24]
[1752167726317,14.1230912,158.85,158.84,35.52]
[1752167726625,14.1230912,158.85,158.84,0.2]
[1752167726834,14.8430912,158.85,158.84,0.2]
[1752167727011,14.8430912,158.85,158.84,35.56]
[1752167727214,28.9661824,158.85,158.84,0.2]
[1752167727427,28.9661824,158.85,158.82,0.2]
[1752167727602,14.1230912,158.83,158.82,0.2]
[1752167727802,0.72,158.84,158.82,0.2]
[1752167728135,14.8430912,158.83,158.82,0.2]
[1752167728341,31.62777517,158.83,158.82,0.2]
[1752167728502,14.8430912,158.83,158.82,0.2]
[1752167728706,0.72,158.83,158.82,0.2]
[1752167729227,17.50468397,158.83,158.82,0.2]
[1752167729424,16.78468397,158.82,158.8,0.2]
[1752167729625,16.78468397,158.8,158.78,0.41254645]
[1752167729833,14.91029442,158.79,158.78,0.41254645]
[1752167730136,1.50720322,158.79,158.78,0.41254645]
[1752167730433,26.0,158.84,158.78,0.41254645]
[1752167730952,14.1230912,158.86,158.8,16.78468397]
[1752167731110,0.72,158.92,158.82,16.78468397]
[1752167731311,14.1230912,158.9,158.84,0.42648471]
[1752167731607,0.72,158.9,158.85,35.42]
[1752167731814,14.1230912,158.86,158.85,35.42]
[1752167732512,14.1230912,158.87,158.85,35.42]
[1752167732713,14.1230912,158.88,158.85,35.42]
[1752167733122,0.72,158.95,158.86,0.72]
[1752167733310,14.1230912,158.9,158.86,0.72]
[1752167733840,14.1230912,158.89,158.85,35.42]
[1752167734058,8.05766029,158.94,158.85,35.42]
[1752167734059,14.1230912,158.88,158.85,35.42]
[1752167734528,0.72,158.92,158.86,0.72]
[1752167734730,14.1230912,158.89,158.86,0.72]
[1752167735239,32.5512,158.94,158.86,0.72]
[1752167735430,14.1230912,158.9,158.86,0.72]
[1752167735619,0.72,158.93,158.86,0.72]
[1752167735812,0.72,158.93,158.85,35.42]
[1752167736008,14.1230912,158.88,158.83,26.0]
[1752167736232,14.1230912,158.87,158.84,35.36]
[1752167736409,14.1230912,158.89,158.85,0.72]
[1752167736609,26.72,158.94,158.85,0.72]
[1752167736812,14.1230912,158.89,158.86,0.72]
[1752167737111,14.1230912,158.91,158.86,0.72]
[1752167737316,14.1230912,158.92,158.87,0.72]